lending/lending_fUSD_20260119
["ID","MTS","AMOUNT","RATE_DAILY","PERIOD"]
[402684270,1768802634081,-500.0,0.00015688,2]
[402684271,1768802634114,-151.0,0.00015688,2]
[402684272,1768802634890,-90.12134816,0.00015608,2]
[402684274,1768802661812,-197.8228604,0.00015597,2]
[402684275,1768802663768,-500.0,0.00015597,2]
[402684276,1768802676505,-160.35608488,0.00015541,2]
[402684277,1768802703154,752.55,0.00026116,120]
[402684278,1768802703691,752.55,0.00026166,120]
[402684279,1768802704242,752.55,0.00027359,120]
[402684280,1768802736492,-6.30391512,0.00015541,2]
[402684281,1768802736515,-49.2314396,0.00015597,2]
[402684282,1768802736538,-99.81685528,0.00015597,2]
[402684283,1768802738542,-199.70464733,0.00015597,2]
[402684284,1768802739621,752.43307538,0.00015103,2]
[402684285,1768802739645,1099.98692462,0.00015103,2]
[402684287,1768802820744,8900.02307538,0.00012151,2]
[402684288,1768802820767,1794.78692462,0.00012151,2]
[402684289,1768802871033,-201.65153409,0.00015596,2]
[402684290,1768802873712,-26.40440584,0.00015596,2]
[402684291,1768802873737,-223.59559416,0.00015596,2]
[402684292,1768802879398,-76.40440584,0.00015596,2]
[402684293,1768802879423,-90.25559416,0.00015596,2]
[402684294,1768802881709,-199.89891448,0.00015597,2]
[402684295,1768802883140,-225.77812456,0.00015597,2]
[402684296,1768802885843,-327.60277528,0.00015597,2]
[402684297,1768802888518,-151.08296096,0.00015597,2]
[402684298,1768802890496,-300.0,0.00015597,2]
[402684299,1768802892426,-231.39722472,0.00015597,2]
[402684300,1768803009268,160.34,0.00015088,2]
[402684307,1768803031823,-300.0,0.00015596,2]
[402684308,1768803031833,-300.0,0.00015596,2]
[402684309,1768803031843,-1200.0,0.00015596,2]
[402684310,1768803031852,-280.0,0.00015596,2]
[402684311,1768803031862,-2378.61989739,0.00015597,2]
[402684312,1768803031872,-4328.07535283,0.00015597,2]
[402684313,1768803031884,-2637.03630639,0.00015597,2]
[402684314,1768803031895,-8359.2,0.00015597,2]
[402684315,1768803031907,-454.55387908,0.00015597,2]
[402684316,1768803031926,-2008.0,0.00015597,2]
[402684317,1768803031958,-64541.3956617,0.00015597,2]
[402684318,1768803031968,-2500.0,0.00015597,2]
[402684319,1768803031977,-14033.02565403,0.00015597,2]
[402684320,1768803031987,-500.0,0.00015688,2]
[402684321,1768803031996,-200.0,0.00015688,2]
[402684322,1768803032005,-450.314911,0.00015688,2]
[402684323,1768803032015,-151.0,0.00015688,2]
[402684324,1768803032025,-151.0,0.00015688,2]
[402684325,1768803032035,-151.0,0.00015688,2]
[402684326,1768803032044,-151.0,0.00015688,2]
[402684327,1768803032054,-151.0,0.00015688,2]
[402684328,1768803032063,-151.0,0.00015688,2]
[402684329,1768803032073,-500.0,0.00015688,2]
[402684330,1768803032083,-500.0,0.00015688,2]
[402684331,1768803032092,-500.0,0.00015688,2]
[402684332,1768803032102,-500.0,0.00015688,2]
[402684333,1768803032111,-500.0,0.00015688,2]
[402684334,1768803032120,-214.48234601,0.00015688,2]
[402684335,1768803032130,-452.11,0.00015688,2]
[402684336,1768803032139,-299.99,0.00015688,2]
[402684337,1768803032149,-5317.68681934,0.00015688,2]
[402684338,1768803032162,-2144.44612092,0.00015688,2]
[402684339,1768803032173,-745.6569597,0.00015688,2]
[402684340,1768803032185,-3773.8207,0.00015688,2]
[402684341,1768803032239,-6911.30768629,0.00015688,2]
[402684342,1768803032548,-3055.63044215,0.00015688,2]
[402684343,1768803032585,-451.0,0.00015688,2]
[402684344,1768803032596,-1067.80442726,0.00015688,2]
[402684345,1768803036682,-748.1263478,0.00015596,2]
[402684349,1768803037949,-733.7920522,0.00015596,2]
[402684350,1768803037958,-281.06149673,0.00015628,2]
[402684351,1768803037968,-2484.91684434,0.00015688,2]
[402684352,1768803037979,-6897.54770147,0.00015688,2]
[402684353,1768803037990,-3102.44229853,0.00015688,2]
[402684354,1768803038000,-193.56996956,0.00015688,2]
[402684355,1768803038061,-4806.42003044,0.00015688,2]
[402684356,1768803038071,-296.13,0.00015688,2]
[402684357,1768803038081,-35.31950497,0.00015688,2]
[402684358,1768803038247,-115.67049503,0.00015688,2]
[402684359,1768803038258,-852.83671724,0.00015688,2]
[402684360,1768803038271,-271.8889911,0.00015688,2]
[402684364,1768803038426,-1250.34429166,0.00015688,2]
[402684367,1768803038451,-9999.99,0.00015688,2]
[402684371,1768803038478,-325.77,0.00015688,2]
[402684375,1768803038504,-258.76937237,0.00015688,2]
[402684378,1768803038532,-289.5121204,0.00015688,2]
[402684382,1768803038557,-9999.99,0.00015695,2]
[402684386,1768803038584,-448.58960332,0.00015695,2]
[402684390,1768803038610,-500.0,0.00015696,2]
[402684394,1768803038639,-179.41357912,0.00015696,2]
[402684397,1768803038664,-289.14683953,0.00015696,2]
[402684401,1768803038688,-525.29097459,0.00015696,2]
[402684404,1768803038712,-500.0,0.00015696,2]
[402684408,1768803038737,-500.0,0.00015696,2]
[402684411,1768803038761,-500.0,0.00015696,2]
[402684415,1768803038788,-500.0,0.00015696,2]
[402684419,1768803038813,-500.0,0.00015696,2]
[402684423,1768803038839,-500.0,0.00015696,2]
[402684427,1768803038869,-500.0,0.00015696,2]
[402684430,1768803038896,-500.0,0.00015696,2]
[402684434,1768803038922,-500.0,0.00015696,2]
[402684438,1768803038951,-500.0,0.00015696,2]
[402684442,1768803038977,-500.0,0.00015696,2]
[402684446,1768803039004,-500.0,0.00015696,2]
[402684449,1768803039033,-500.0,0.00015696,2]
[402684453,1768803039060,-511.30863973,0.00015696,2]
[402684456,1768803039086,-43619.31103604,0.00015696,2]
[402684460,1768803039116,-650.73,0.00015696,2]
[402684464,1768803039144,-500.0,0.00015696,2]
[402684467,1768803039175,-500.0,0.00015696,2]
[402684471,1768803039203,-500.0,0.00015696,2]
[402684474,1768803039227,-500.0,0.00015696,2]
[402684478,1768803039253,-500.0,0.00015696,2]
[402684482,1768803039278,-500.0,0.00015696,2]
[402684485,1768803039303,-509.1441621,0.00015696,2]
[402684488,1768803039327,-500.0,0.00015696,2]
[402684492,1768803039355,-500.0,0.00015696,2]
[402684496,1768803039379,-500.0,0.00015696,2]
[402684499,1768803039404,-500.0,0.00015696,2]
[402684503,1768803039428,-1000.0,0.00015697,2]
[402684506,1768803039454,-417.0916,0.00015697,2]
[402684510,1768803039480,-500.0,0.00015697,2]
[402684514,1768803039506,-7725.59778114,0.00015697,2]
[402684583,1768803040261,-1069.24989841,0.00015697,2]
[402684585,1768803040273,-635.90463573,0.00015697,2]
[402684587,1768803040284,-1894.35768472,0.00015697,2]
[402684590,1768803040298,-310.22,0.00015697,2]
[402684592,1768803040307,-26210.11,0.00015697,2]
[402684594,1768803040317,-150.99,0.00015697,2]
[402684596,1768803040328,-1188.53,0.00015697,2]
[402684598,1768803040337,-9999.99,0.00015697,2]
[402684600,1768803040347,-999.99,0.00015697,2]
[402684602,1768803040357,-450.0,0.00015697,2]
[402684604,1768803040366,-450.0,0.00015697,2]
[402684606,1768803040376,-450.0,0.00015697,2]
[402684608,1768803040386,-450.0,0.00015697,2]
[402684610,1768803040396,-450.0,0.00015697,2]
[402684612,1768803040406,-450.0,0.00015697,2]
[402684614,1768803040415,-450.0,0.00015697,2]
[402684616,1768803040424,-450.0,0.00015697,2]
[402684618,1768803040434,-450.0,0.00015697,2]
[402684621,1768803040443,-450.0,0.00015697,2]
[402684623,1768803040453,-450.0,0.00015697,2]
[402684625,1768803040463,-450.0,0.00015697,2]
[402684627,1768803040472,-450.0,0.00015697,2]
[402684629,1768803040481,-450.0,0.00015697,2]
[402684631,1768803040491,-450.0,0.00015697,2]
[402684633,1768803040500,-450.0,0.00015697,2]
[402684635,1768803040510,-450.0,0.00015697,2]
[402684637,1768803040519,-450.0,0.00015697,2]
[402684639,1768803040529,-450.0,0.00015697,2]
[402684641,1768803040538,-450.0,0.00015697,2]
[402684643,1768803040548,-450.0,0.00015697,2]
[402684645,1768803040558,-450.0,0.00015697,2]
[402684647,1768803040567,-450.0,0.00015697,2]
[402684649,1768803040577,-450.0,0.00015697,2]
[402684651,1768803040587,-450.0,0.00015697,2]
[402684653,1768803040596,-450.0,0.00015697,2]
[402684655,1768803040606,-450.0,0.00015697,2]
[402684657,1768803040615,-450.0,0.00015697,2]
[402684659,1768803040625,-450.0,0.00015697,2]
[402684661,1768803040634,-450.0,0.00015697,2]
[402684663,1768803040644,-450.0,0.00015697,2]
[402684666,1768803040658,-450.0,0.00015697,2]
[402684668,1768803040667,-450.0,0.00015697,2]
[402684670,1768803040677,-450.0,0.00015697,2]
[402684672,1768803040687,-450.0,0.00015697,2]
[402684674,1768803040697,-450.0,0.00015697,2]
[402684676,1768803040707,-354.75776,0.00015697,2]
[402684678,1768803040716,-9999.99,0.00015728,2]
[402684680,1768803040726,-1192.77,0.00015728,2]
[402684682,1768803040735,-749.31,0.00015728,2]
[402684684,1768803040745,-1199.06,0.00015728,2]
[402684686,1768803040754,-1835.03,0.00015728,2]
[402684688,1768803040763,-325.77,0.00015728,2]
[402684690,1768803040774,-17361.21469258,0.00015767,2]
[402684692,1768803040783,-325.77,0.00015768,2]
[402684694,1768803040793,-500.0,0.00015796,2]
[402684696,1768803040803,-500.0,0.00015796,2]
[402684698,1768803040813,-500.0,0.00015796,2]
[402684700,1768803040822,-500.0,0.00015796,2]
[402684702,1768803040832,-511.80432216,0.00015796,2]
[402684704,1768803040841,-200.0,0.000158,5]
[402684707,1768803040855,-325.77,0.00015807,2]
[402684709,1768803040864,-325.77,0.00015847,2]
[402684711,1768803040874,-14033.02565403,0.00015853,2]
[402684713,1768803040883,-325.77,0.00015887,2]
[402684715,1768803040893,-166.66,0.00015892,2]
[402684717,1768803040902,-400.0,0.000159,5]
[402684719,1768803040911,-500.0,0.00015914,2]
[402684721,1768803040921,-500.0,0.00015915,2]
[402684723,1768803040930,-500.0,0.00015915,2]
[402684725,1768803040939,-500.0,0.00015915,2]
[402684727,1768803040949,-181.5474637,0.00015915,2]
[402684729,1768803040959,-150.0,0.00015915,2]
[402684731,1768803040969,-500.0,0.00015915,2]
[402684733,1768803040978,-150.0,0.00015915,2]
[402684735,1768803040988,-500.0,0.00015915,2]
[402684737,1768803040997,-249.07582255,0.00015915,2]
[402684739,1768803041007,-500.0,0.00015915,2]
[402684741,1768803041017,-535.0,0.00015915,2]
[402684743,1768803041027,-500.0,0.00015915,2]
[402684745,1768803041037,-486.0,0.00015915,2]
[402684748,1768803041047,-150.0,0.00015915,2]
[402684750,1768803041056,-160.34,0.00015926,2]
[402684752,1768803041066,-500.0,0.0001597,2]
[402684754,1768803041075,-500.0,0.0001597,2]
[402684756,1768803041085,-500.0,0.0001597,2]
[402684758,1768803041094,-150.0,0.0001597,2]
[402684759,1768803041103,-500.0,0.0001597,2]
[402684762,1768803041113,-150.0,0.0001597,2]
[402684764,1768803041122,-500.0,0.0001597,2]
[402684766,1768803041132,-500.0,0.0001597,2]
[402684768,1768803041142,-535.0,0.0001597,2]
[402684770,1768803041154,-500.0,0.0001597,2]
[402684772,1768803041165,-486.0,0.0001597,2]
[402684774,1768803041175,-262.58907079,0.0001597,2]
[402684776,1768803041185,-650.73,0.0001597,2]
[402684778,1768803041195,-209.98696259,0.00015971,2]
[402684780,1768803041204,-286.8814507,0.00015973,2]
[402684782,1768803041214,-329.22631029,0.00015981,2]
[402684784,1768803041228,-500.0,0.00015996,2]
[402684786,1768803041237,-500.0,0.00015996,2]
[402684788,1768803041247,-500.0,0.00015996,2]
[402684790,1768803041258,-198.58095138,0.00015996,2]
[402684792,1768803041268,-500.0,0.00015996,2]
[402684794,1768803041277,-500.0,0.00015996,2]
[402684796,1768803041287,-500.0,0.00015996,2]
[402684798,1768803041296,-500.0,0.00015996,2]
[402684800,1768803041306,-318.85334381,0.00015996,2]
[402684802,1768803041315,-500.0,0.00015996,2]
[402684804,1768803041324,-500.0,0.00015996,2]
[402684806,1768803041334,-500.0,0.00015996,2]
[402684808,1768803041343,-500.0,0.00015996,2]
[402684810,1768803041352,-369.91760368,0.00015996,2]
[402684812,1768803041362,-500.0,0.00015996,2]
[402684814,1768803041371,-500.0,0.00015996,2]
[402684816,1768803041380,-500.0,0.00015996,2]
[402684818,1768803041389,-500.0,0.00015996,2]
[402684821,1768803041399,-500.0,0.00015996,2]
[402684823,1768803041409,-500.0,0.00016018,2]
[402684825,1768803041418,-500.0,0.00016025,2]
[402684827,1768803041427,-318.969955,0.00016025,2]
[402684829,1768803041437,-500.0,0.00016025,2]
[402684831,1768803041446,-255.80435828,0.00016025,2]
[402684833,1768803041455,-500.0,0.00016025,2]
[402684835,1768803041465,-212.75413196,0.00016025,2]
[402684837,1768803041474,-500.0,0.00016025,2]
[402684839,1768803041484,-379.99704152,0.00016025,2]
[402684841,1768803041494,-535.0,0.00016025,2]
[402684843,1768803041504,-521.95168859,0.00016025,2]
[402684845,1768803041514,-486.0,0.00016025,2]
[402684847,1768803041523,-500.0,0.00016079,2]
[402684849,1768803041533,-500.0,0.00016079,2]
[402684851,1768803041542,-425.79840012,0.00016079,2]
[402684853,1768803041551,-500.0,0.00016079,2]
[402684855,1768803041561,-535.0,0.00016079,2]
[402684857,1768803041570,-486.0,0.00016079,2]
[402684859,1768803041580,-207.49358653,0.00016098,2]
[402684861,1768803041590,-14033.02565403,0.00016109,2]
[402684863,1768803041599,-500.0,0.00016134,2]
[402684865,1768803041609,-500.0,0.00016134,2]
[402684867,1768803041619,-500.0,0.00016134,2]
[402684869,1768803041628,-500.0,0.00016134,2]
[402684872,1768803041638,-500.0,0.00016134,2]
[402684874,1768803041648,-500.0,0.00016134,2]
[402684876,1768803041657,-500.0,0.00016134,2]
[402684878,1768803041667,-535.0,0.00016134,2]
[402684880,1768803041676,-486.0,0.00016134,2]
[402684882,1768803041685,-166.66,0.00016182,2]
[402684884,1768803041694,-500.0,0.00016189,2]
[402684886,1768803041704,-160.2774242,0.00016189,2]
[402684888,1768803041713,-500.0,0.00016189,2]
[402684890,1768803041722,-535.0,0.00016189,2]
[402684892,1768803041731,-486.0,0.00016189,2]
[402684894,1768803041741,-150.0,0.000162,2]
[402684896,1768803041750,-150.0,0.000162,2]
[402684897,1768803041759,-150.0,0.000162,2]
[402684899,1768803041769,-150.0,0.000162,2]
[402684902,1768803041779,-150.0,0.000162,2]
[402684904,1768803041788,-150.0,0.000162,2]
[402684906,1768803041798,-151.99077629,0.000162,2]
[402684908,1768803041808,-151.40371852,0.000162,2]
[402684910,1768803041817,-277.26841123,0.000162,2]
[402684912,1768803041827,-500.0,0.00016244,2]
[402684914,1768803041836,-500.0,0.00016244,2]
[402684916,1768803041846,-535.0,0.00016244,2]
[402684917,1768803041855,-486.0,0.00016244,2]
[402684920,1768803041865,-650.73,0.00016244,2]
[402684922,1768803041874,-376.4,0.00016249,2]
[402684924,1768803041884,-500.0,0.00016298,2]
[402684926,1768803041893,-500.0,0.00016299,2]
[402684927,1768803041903,-500.0,0.00016299,2]
[402684928,1768803041913,-535.0,0.00016299,2]
[402684929,1768803041923,-486.0,0.00016299,2]
[402684930,1768803041932,-500.0,0.00016353,2]
[402684931,1768803041942,-150.0,0.00016353,2]
[402684932,1768803041952,-150.0,0.00016353,2]
[402684933,1768803041962,-201.90997055,0.00016353,2]
[402684934,1768803041972,-500.0,0.00016353,2]
[402684935,1768803041981,-500.0,0.00016353,2]
[402684936,1768803041991,-535.0,0.00016353,2]
[402684937,1768803042001,-486.0,0.00016353,2]
[402684938,1768803042011,-500.0,0.00016356,2]
[402684939,1768803042021,-500.0,0.00016356,2]
[402684940,1768803042030,-1700.0,0.00016356,2]
[402684941,1768803042040,-329.22631029,0.00016365,2]
[402684942,1768803042050,-14033.02565403,0.00016365,2]
[402684943,1768803042059,-835.0,0.000164,2]
[402684944,1768803042069,-500.0,0.00016408,2]
[402684945,1768803042079,-150.0,0.00016408,2]
[402684946,1768803042088,-150.0,0.00016408,2]
[402684947,1768803042098,-500.0,0.00016408,2]
[402684948,1768803042107,-500.0,0.00016408,2]
[402684949,1768803042117,-535.0,0.00016408,2]
[402684950,1768803042126,-486.0,0.00016408,2]
[402684951,1768803042135,-500.0,0.00016437,2]
[402684952,1768803042145,-4319.62586682,0.00016438,2]
[402684954,1768803042159,-982.0402849,0.00016438,2]
[402684955,1768803042169,-2045.65935531,0.00016438,2]
[402684956,1768803042178,-1168.58,0.00016438,2]
[402684957,1768803042188,-1168.58,0.00016438,2]
[402684958,1768803042199,-1168.58,0.00016438,2]
[402684959,1768803042208,-1168.58,0.00016438,2]
[402684960,1768803042219,-1168.58,0.00016438,2]
[402684961,1768803042229,-1168.58,0.00016438,2]
[402684962,1768803042239,-1168.58,0.00016438,2]
[402684963,1768803042248,-1168.58,0.00016438,2]
[402684964,1768803042258,-1168.58,0.00016438,2]
[402684965,1768803042269,-1168.58,0.00016438,2]
[402684966,1768803042278,-1168.58,0.00016438,2]
[402684967,1768803042288,-1168.58,0.00016438,2]
[402684968,1768803042298,-1168.58,0.00016438,2]
[402684969,1768803042307,-1168.58,0.00016438,2]
[402684970,1768803042317,-1168.58,0.00016438,2]
[402684971,1768803042327,-1168.58,0.00016438,2]
[402684972,1768803042337,-1168.58,0.00016438,2]
[402684973,1768803042347,-1168.58,0.00016438,2]
[402684974,1768803042358,-1168.58,0.00016438,2]
[402684975,1768803042368,-1168.58,0.00016438,2]
[402684976,1768803042377,-1168.58,0.00016438,2]
[402684977,1768803042387,-1168.58,0.00016438,2]
[402684978,1768803042397,-1168.58,0.00016438,2]
[402684979,1768803042406,-1168.68360185,0.00016438,2]
[402684980,1768803042416,-301.40535093,0.00016438,2]
[402684981,1768803042426,-603.26732736,0.00016438,2]
[402684982,1768803042436,-500.0,0.00016438,2]
[402684983,1768803042446,-500.0,0.00016438,2]
[402684984,1768803042457,-500.0,0.00016438,2]
[402684985,1768803042467,-500.0,0.00016438,2]
[402684986,1768803042477,-500.0,0.00016438,2]
[402684987,1768803042487,-500.0,0.00016438,2]
[402684988,1768803042497,-500.0,0.00016438,2]
[402684989,1768803042506,-500.0,0.00016438,2]
[402684990,1768803042517,-500.0,0.00016438,2]
[402684991,1768803042527,-500.0,0.00016438,2]
[402684992,1768803042537,-500.0,0.00016438,2]
[402684993,1768803042547,-500.0,0.00016438,2]
[402684994,1768803042557,-500.0,0.00016438,2]
[402684995,1768803042566,-500.0,0.00016438,2]
[402684996,1768803042577,-500.0,0.00016438,2]
[402684997,1768803042586,-500.0,0.00016438,2]
[402684998,1768803042596,-292.69016135,0.00016438,2]
[402684999,1768803042605,-500.0,0.00016438,2]
[402685000,1768803042615,-500.0,0.00016438,2]
[402685001,1768803042624,-500.0,0.00016438,2]
[402685002,1768803042634,-500.0,0.00016438,2]
[402685003,1768803042644,-500.0,0.00016438,2]
[402685004,1768803042653,-500.0,0.00016438,2]
[402685005,1768803042663,-500.0,0.00016438,2]
[402685007,1768803042672,-500.0,0.00016438,2]
[402685009,1768803042682,-500.0,0.00016438,2]
[402685011,1768803042691,-500.0,0.00016438,2]
[402685013,1768803042701,-500.0,0.00016438,2]
[402685014,1768803042710,-500.0,0.00016438,2]
[402685015,1768803042720,-500.0,0.00016438,2]
[402685016,1768803042728,-500.0,0.00016438,2]
[402685017,1768803042738,-500.0,0.00016438,2]
[402685018,1768803042747,-500.0,0.00016438,2]
[402685019,1768803042759,-500.0,0.00016438,2]
[402685021,1768803042768,-500.0,0.00016438,2]
[402685022,1768803042778,-500.0,0.00016438,2]
[402685023,1768803042787,-534.21145217,0.00016438,2]
[402685024,1768803042795,-500.0,0.00016438,2]
[402685025,1768803042804,-500.0,0.00016438,2]
[402685026,1768803042813,-500.0,0.00016438,2]
[402685027,1768803042822,-500.0,0.00016438,2]
[402685028,1768803042831,-500.0,0.00016438,2]
[402685029,1768803042840,-372.22863913,0.00016438,2]
[402685030,1768803042849,-500.0,0.00016438,2]
[402685031,1768803042858,-500.0,0.00016438,2]
[402685032,1768803042867,-500.0,0.00016438,2]
[402685033,1768803042876,-433.17897232,0.00016438,2]
[402685034,1768803042885,-500.0,0.00016438,2]
[402685035,1768803042895,-800.0,0.00016438,2]
[402685036,1768803042905,-150.0,0.00016457,2]
[402685037,1768803042915,-500.0,0.00016463,2]
[402685038,1768803042924,-150.0,0.00016463,2]
[402685039,1768803042933,-150.0,0.00016463,2]
[402685040,1768803042942,-500.0,0.00016463,2]
[402685041,1768803042951,-500.0,0.00016463,2]
[402685042,1768803042960,-535.0,0.00016463,2]
[402685043,1768803042970,-486.0,0.00016463,2]
[402685044,1768803042979,-500.0,0.00016493,2]
[402685045,1768803042988,-343.5782586,0.00016517,2]
[402685046,1768803042997,-250.0,0.00016517,2]
[402685047,1768803043006,-150.0,0.00016517,2]
[402685048,1768803043017,-500.0,0.00016518,2]
[402685049,1768803043026,-500.0,0.00016518,2]
[402685050,1768803043036,-535.0,0.00016518,2]
[402685051,1768803043045,-486.0,0.00016518,2]
[402685052,1768803043054,-650.73,0.00016518,2]
[402685054,1768803043064,-350.0,0.00016548,2]
[402685055,1768803043313,-251.65720037,0.00016572,2]
[402685056,1768803043323,-500.0,0.00016573,2]
[402685057,1768803043332,-500.0,0.00016573,2]
[402685058,1768803043341,-535.0,0.00016573,2]
[402685059,1768803043351,-486.0,0.00016573,2]
[402685060,1768803043360,-161.12,0.00016606,2]
[402685061,1768803043369,-14033.02565403,0.00016621,2]
[402685062,1768803043379,-205.17802292,0.00016627,2]
[402685064,1768803043387,-500.0,0.00016627,2]
[402685065,1768803043396,-535.0,0.00016627,2]
[402685067,1768803043406,-486.0,0.00016627,2]
[402685068,1768803043415,-284.95146491,0.00016682,2]
[402685069,1768803043424,-535.0,0.00016682,2]
[402685070,1768803043433,-486.0,0.00016682,2]
[402685071,1768803043443,-271.92678904,0.00016691,2]
[402685072,1768803043452,-426.46,0.00016695,2]
[402685073,1768803043461,-499.99999983,0.00016699,2]
[402685074,1768803043470,-500.0,0.00016699,2]
[402685075,1768803043480,-196304.75585459,0.000167,2]
[402685076,1768803043489,-150.0,0.00016714,2]
[402685077,1768803043498,-510.0,0.00016719,2]
[402685078,1768803043507,-535.0,0.00016737,2]
[402685079,1768803043516,-486.0,0.00016737,2]
[402685080,1768803043526,-329.22631029,0.00016749,2]
[402685081,1768803043536,-160.34,0.00016764,2]
[402685082,1768803043545,-392.03,0.00016767,2]
[402685083,1768803043555,-181.0182879,0.00016788,2]
[402685084,1768803043564,-535.0,0.00016792,2]
[402685085,1768803043574,-486.0,0.00016792,2]
[402685086,1768803043583,-650.73,0.00016792,2]
[402685087,1768803043593,-150.0,0.000168,2]
[402685088,1768803043602,-166.66,0.00016823,2]
[402685089,1768803043611,-535.0,0.00016847,2]
[402685090,1768803043620,-486.0,0.00016847,2]
[402685091,1768803043630,-1000.0,0.00016853,2]
[402685092,1768803043639,-14033.02565403,0.00016876,2]
[402685093,1768803043649,-150.0,0.00016878,2]
[402685094,1768803043658,-700.0,0.000169,6]
[402685095,1768803043667,-535.0,0.00016901,2]
[402685096,1768803043677,-486.0,0.00016901,2]
[402685097,1768803043686,-322.6107,0.00016944,2]
[402685098,1768803043697,-721.12765535,0.00016944,2]
[402685099,1768803043707,-153.82652848,0.00016944,2]
[402685100,1768803043717,-1268.37155993,0.00016944,2]
[402685101,1768803043727,-151.0,0.00016944,2]
[402685102,1768803043737,-1000.0,0.00016944,2]
[402685103,1768803043746,-1000.0,0.00016944,2]
[402685104,1768803043755,-197.30205766,0.00016944,2]
[402685105,1768803043764,-1000.0,0.00016944,2]
[402685106,1768803043774,-1000.0,0.00016944,2]
[402685107,1768803043784,-1049.25704845,0.00016944,2]
[402685108,1768803043797,-1000.0,0.00016944,2]
[402685109,1768803043807,-578.20924308,0.00016944,2]
[402685110,1768803043817,-1000.0,0.00016944,2]
[402685111,1768803043827,-1000.0,0.00016944,2]
[402685112,1768803043837,-1000.0,0.00016944,2]
[402685113,1768803043846,-194.416276,0.00016944,2]
[402685114,1768803043856,-250.0,0.00016944,2]
[402685115,1768803043866,-2000.0,0.00016944,2]
[402685116,1768803043875,-250.0,0.00016944,2]
[402685117,1768803043885,-2000.0,0.00016944,2]
[402685118,1768803043895,-174.61919141,0.00016944,2]
[402685119,1768803043904,-250.0,0.00016944,2]
[402685120,1768803043915,-2000.0,0.00016944,2]
[402685121,1768803043925,-250.0,0.00016944,2]
[402685122,1768803043935,-2000.0,0.00016944,2]
[402685123,1768803043947,-262.53296866,0.00016944,2]
[402685124,1768803043958,-2000.0,0.00016944,2]
[402685125,1768803043967,-574.12855637,0.00016944,2]
[402685126,1768803043977,-1999.0,0.00016944,2]
[402685127,1768803043989,-695.0,0.00016944,2]
[402685128,1768803043999,-535.0,0.00016956,2]
[402685129,1768803044009,-486.0,0.00016956,2]
[402685130,1768803044018,-150.0,0.00016971,2]
[402685131,1768803044028,-500.0,0.00016979,2]
[402685132,1768803044038,-160.31433437,0.00016979,2]
[402685133,1768803044047,-535.0,0.00017011,2]
[402685134,1768803044058,-486.0,0.00017011,2]
[402685135,1768803044068,-163.0,0.0001704,2]
[402685136,1768803044077,-823.0,0.00017046,2]
[402685137,1768803044087,-535.0,0.00017066,2]
[402685138,1768803044096,-486.0,0.00017066,2]
[402685139,1768803044106,-650.73,0.00017066,2]
[402685140,1768803044116,-193.0,0.00017095,2]
[402685141,1768803044125,-150.0,0.000171,2]
[402685142,1768803044134,-150.0,0.000171,2]
[402685143,1768803044144,-150.0,0.000171,2]
[402685144,1768803044157,-823.0,0.00017106,2]